bitfinex/quotes_ETHUSD_20250721
["timestamp","ask_amount","ask_price","bid_price","bid_amount"]
[1753056846370,0.1336,3736.7,3736.1,0.1546]
[1753056846577,4.207,3736.5,3736.1,0.1546]
[1753056846771,0.36150186,3736.4,3736.0,0.7759]
[1753056846921,0.41640335,3736.7,3733.6,0.19950001]
[1753056846922,2.67687448,3735.7,3733.6,0.19950001]
[1753056847123,0.55,3735.0,3734.0,0.1336]
[1753056847349,4.24,3734.9,3734.0,0.1336]
[1753056847553,0.1336,3734.6,3734.0,0.1336]
[1753056847772,3.0,3735.1,3733.6,0.19950001]
[1753056848065,0.4666,3735.7,3734.4,0.1336]
[1753056848266,3.0,3735.7,3735.0,0.1336]
[1753056848466,3.0,3735.7,3735.1,0.1336]
[1753056848667,0.4666,3735.6,3733.9,2.67816313]
[1753056848871,0.1336,3735.4,3734.8,0.1336]
[1753056849469,4.241,3735.8,3734.2,3.0]
[1753056849626,4.241,3735.8,3735.3,0.1336]
[1753056849826,4.241,3735.8,3735.4,0.8269]
[1753056850958,0.6002,3735.9,3735.4,0.8269]
[1753056851774,0.1336,3735.9,3735.4,0.8269]
[1753056852079,0.4666,3735.8,3735.3,0.1336]
[1753056852236,3.14351214,3735.7,3735.3,0.1336]
[1753056852662,0.4666,3735.6,3735.3,0.1336]
[1753056853177,0.4666,3735.5,3735.3,0.1336]
[1753056853470,0.1336,3735.4,3735.0,0.8304]
[1753056853637,4.237,3735.7,3735.0,0.8304]
[1753056853841,4.237,3735.7,3733.6,0.74950001]
[1753056853842,0.5,3733.6,3731.0,0.17351158]
[1753056854055,0.5,3733.6,3730.5,6.57672171]
[1753056854056,0.5,3733.6,3732.6,2.67908875]
[1753056854262,0.5,3733.6,3733.5,0.1336]
[1753056854673,0.5,3734.0,3733.5,2.81205185]
[1753056854877,0.5,3734.2,3733.6,0.30798899]
[1753056855084,0.5,3734.2,3732.2,2.67937405]
[1753056855085,0.5,3733.8,3732.1,2.6794566]
[1753056855379,0.5,3734.0,3733.7,0.1336]
[1753056855699,0.5,3734.6,3733.8,0.02678236]
[1753056855876,0.5,3734.3,3732.9,3.0]
[1753056856053,0.5,3734.3,3734.2,0.1336]
[1753056856575,0.5,3734.3,3734.2,0.1136]
[1753056857486,0.5,3733.7,3733.6,0.1336]
[1753056857670,0.5,3733.7,3732.9,0.6389]
[1753056857991,0.5,3733.3,3732.9,0.6389]
[1753056858203,0.5,3733.3,3733.2,0.1336]
[1753056858700,0.5,3732.8,3732.7,0.001]
[1753056859858,0.9666,3732.8,3732.7,0.001]
[1753056860054,0.9666,3732.8,3732.5,0.1336]
[1753056860055,0.5,3732.6,3732.5,0.1336]
[1753056860304,0.5,3732.6,3731.3,2.67998822]
[1753056860305,0.5,3731.8,3731.3,2.67998822]
[1753056860448,0.5,3732.3,3730.1,0.1503185]
[1753056860654,0.5,3732.2,3731.2,2.68007747]
[1753056860951,0.5,3732.1,3731.3,0.26800775]
[1753056861154,0.5,3731.9,3731.3,2.94802987]
[1753056861401,0.5,3731.9,3731.3,0.26800775]
[1753056861566,0.5,3731.9,3730.6,2.68053396]
[1753056861884,0.5,3732.1,3731.5,2.67988595]
[1753056862100,0.5,3732.1,3730.7,3.0]
[1753056862400,0.5,3732.0,3730.1,0.02]
[1753056862714,3.5,3732.6,3730.6,3.0]
[1753056862865,0.5,3732.4,3732.3,2.67931302]
[1753056863069,0.02,3732.9,3732.8,2.67895413]
[1753056863300,0.02,3732.9,3731.0,0.01341183]
[1753056863301,0.5,3732.8,3732.7,2.6790259]
[1753056863461,0.02,3732.9,3732.2,2.67936414]
[1753056863670,0.5,3732.8,3731.5,4.261]
[1753056863866,0.5,3732.8,3731.6,0.4261]
[1753056864172,0.5,3732.8,3732.1,2.67945405]
[1753056864390,0.5,3732.8,3732.4,2.67923579]
[1753056864559,0.5,3732.8,3731.6,0.4261]
[1753056864767,0.02,3732.9,3731.7,0.01341147]
[1753056864968,0.02,3732.9,3732.8,2.67895413]
[1753056865209,0.02,3732.9,3732.8,2.69235232]
[1753056865498,0.02,3732.9,3732.8,2.67895413]
[1753056866271,0.02,3732.9,3730.2,1.32105429]
[1753056866272,0.02,3732.9,3732.0,2.6795284]
[1753056866574,0.02,3732.9,3732.1,0.01340644]
[1753056866789,0.02,3732.9,3732.8,2.67895413]
[1753056869391,0.02,3732.9,3732.7,2.69240484]
[1753056869602,0.02,3732.9,3730.1,0.02]
[1753056869803,0.5,3731.8,3730.1,0.02]
[1753056869968,0.5,3731.6,3730.4,2.68061707]
[1753056870173,0.4671,3731.8,3731.2,0.1336]
[1753056870174,0.5,3731.4,3731.2,0.1336]
[1753056870374,0.5,3731.8,3730.5,2.69499607]
[1753056870572,0.5,3731.8,3731.3,0.1336]
[1753056870808,0.5,3731.8,3731.3,0.0836]
[1753056870987,0.1336,3732.1,3731.7,0.1336]
[1753056871189,4.267,3732.2,3731.7,0.1336]
[1753056871521,4.267,3732.2,3730.5,0.01442009]
[1753056871522,0.5,3732.2,3732.0,0.1336]
[1753056871724,5.11105973,3732.5,3732.0,0.1336]
[1753056871876,0.5,3732.2,3732.0,0.1336]
[1753056872077,0.53349231,3732.2,3731.2,2.68009576]
[1753056872304,0.5,3731.9,3731.8,0.1336]
[1753056872685,0.5,3732.1,3731.8,0.1336]
[1753056872887,0.5,3731.9,3731.8,0.1336]
[1753056873116,0.5,3731.9,3730.5,4.267]
[1753056873117,5.07757012,3731.9,3730.6,0.01342045]
[1753056873333,5.07757012,3731.9,3731.4,0.1336]
[1753056873533,0.1336,3732.0,3731.4,0.1336]
[1753056873731,0.4671,3732.4,3731.5,0.28136243]
[1753056873937,2.67931456,3732.3,3731.7,0.1336]
[1753056874146,0.5,3732.1,3731.7,0.1336]
[1753056874315,3.17947693,3732.1,3731.7,0.1336]
[1753056874498,0.4671,3732.0,3731.7,0.1336]
[1753056874931,0.4671,3731.9,3731.7,0.1336]
[1753056875198,0.5,3732.1,3731.7,0.1336]
[1753056875430,0.9671,3732.1,3731.7,0.1336]
[1753056876556,0.5,3731.9,3730.9,2.68027565]
[1753056876755,0.5,3731.4,3730.5,0.001]
[1753056876926,0.5,3731.4,3730.6,2.68051856]
[1753056877131,0.5,3731.4,3730.5,0.001]
[1753056877425,0.5,3731.4,3730.7,2.68045045]
[1753056877624,0.5,3731.4,3730.7,2.69388203]
[1753056877826,0.5,3731.4,3730.7,0.01343158]
[1753056878050,1.7472,3732.0,3730.7,0.01343158]
[1753056878255,0.5,3732.0,3731.2,2.68008495]
[1753056878554,5.5213,3732.4,3730.5,3.37571845]
[1753056878555,0.5,3732.3,3731.3,3.22948147]
[1753056878858,0.5,3732.3,3731.4,2.67995926]
[1753056879071,0.5,3732.5,3731.5,2.69327485]
[1753056879369,0.5,3732.2,3731.7,2.67972503]
[1753056879521,0.5,3732.2,3731.6,2.67979911]
[1753056879856,0.5,3732.2,3731.7,0.26932163]
[1753056880560,0.5,3732.2,3730.9,4.255]
[1753056880561,0.5,3732.2,3731.0,2.69363515]
[1753056880716,0.4671,3732.4,3731.0,2.69363515]
[1753056880717,0.5,3732.4,3731.0,0.01341758]
[1753056881120,0.5,3732.2,3730.9,4.255]
[1753056881328,0.5,3732.2,3730.5,0.69517152]
[1753056881528,0.5,3732.2,3731.3,2.68002364]
[1753056881529,0.4671,3732.1,3731.3,2.68002364]
[1753056881729,0.4671,3732.1,3731.4,2.67994416]
[1753056882122,0.4671,3732.1,3730.6,3.0]
[1753056882317,0.5,3732.0,3731.2,2.68009326]
[1753056882764,0.5,3732.0,3731.2,2.68004694]
[1753056883058,0.5,3732.0,3731.3,0.26800469]
[1753056883575,0.5,3732.0,3730.7,4.252]
[1753056883576,0.5,3732.0,3731.1,2.68012128]
[1753056883737,0.5,3732.0,3731.2,0.0134226]
[1753056884058,0.5,3732.0,3731.3,2.68003108]
[1753056884259,0.5,3732.0,3731.1,2.6801218]
[1753056884468,0.5,3732.0,3731.3,2.68003108]
[1753056884772,0.5,3731.8,3730.9,2.68028616]
[1753056884930,0.5,3731.8,3731.3,2.67998427]
[1753056885264,0.5,3731.8,3731.2,2.68008217]
[1753056885626,0.5,3731.8,3731.1,2.680159]
[1753056886145,0.5,3731.8,3731.2,2.68009277]
[1753056886353,0.5,3731.8,3731.2,2.68009264]
[1753056886548,0.5,3731.8,3731.6,0.1336]
[1753056886861,0.9671,3731.8,3731.6,0.1336]
[1753056888125,0.9671,3731.8,3731.1,0.001]
[1753056888126,0.5,3731.6,3731.1,0.001]
[1753056888381,0.5,3731.2,3731.1,0.1346]
[1753056888674,1.7883,3731.2,3731.1,0.1346]
[1753056888875,1.7883,3731.2,3730.5,0.001]
[1753056889048,0.5,3731.0,3730.5,0.1346]
[1753056889244,0.5,3731.0,3730.5,0.28252941]
[1753056889471,0.8212,3731.1,3730.9,0.1336]
[1753056889672,1.3212,3731.6,3730.9,0.1336]
[1753056889981,1.3212,3731.6,3731.4,2.81355522]
[1753056890184,0.4671,3731.5,3731.4,0.1336]
[1753056890377,0.5,3731.4,3731.1,0.1336]
[1753056890593,0.9671,3731.4,3731.1,0.1336]
[1753056890877,1.331,3731.2,3731.1,0.1336]
[1753056891238,1.7981,3731.2,3731.1,0.1336]
[1753056891572,0.5,3731.2,3731.1,0.1336]
[1753056891741,9.68807012,3731.6,3731.1,0.1336]
[1753056891934,0.5,3731.2,3731.1,0.1336]
[1753056892139,0.4671,3731.5,3731.1,0.1336]
[1753056892339,0.5,3731.4,3731.1,2.81376158]
[1753056892573,1.3276,3731.6,3731.2,0.28137616]
[1753056892777,1.3276,3731.6,3731.3,0.1336]
[1753056892937,0.4671,3731.5,3731.3,0.1336]
[1753056893140,0.5,3731.2,3730.2,3.0]
[1753056893450,0.5,3731.2,3730.3,0.01343805]
[1753056893640,1.3276,3731.6,3730.3,0.01343805]
[1753056893843,5.0299,3731.9,3730.4,3.0]
[1753056894056,0.5,3731.6,3730.3,0.30334381]
[1753056894341,0.5,3731.3,3730.5,2.68054322]
[1753056894569,0.4671,3731.2,3730.9,2.68025797]
[1753056894877,0.4671,3731.1,3730.3,0.30334381]
[1753056895094,0.4671,3731.1,3730.7,2.68044378]
[1753056895282,0.5,3731.3,3730.4,0.75783438]
[1753056895643,0.5,3731.3,3731.0,2.6802113]
[1753056895857,1.244,3731.4,3731.1,2.68017474]
[1753056895858,0.7769,3731.4,3731.1,2.68017474]
[1753056896054,0.02,3732.9,3730.8,0.01342835]
[1753056896055,0.4671,3732.4,3730.8,0.01342835]
[1753056896261,0.7769,3732.3,3731.7,2.67968403]
[1753056896506,0.5,3731.6,3730.9,4.258]
[1753056896655,0.5,3732.0,3731.7,2.67967352]
[1753056896859,0.5,3732.0,3730.7,2.68046211]
[1753056896860,0.5,3732.0,3730.9,2.68031842]
[1753056897090,0.4671,3732.2,3731.0,2.68021089]
[1753056897271,0.5,3731.9,3731.5,2.67983935]
[1753056897470,0.5,3732.0,3730.8,0.1346]
[1753056897658,0.5,3732.0,3730.9,0.70750621]
[1753056897858,0.5,3732.0,3731.5,2.67983167]
[1753056898198,0.5,3731.8,3731.7,2.67974381]
[1753056898372,0.5,3732.1,3731.1,0.01342009]
[1753056898567,0.5,3732.1,3731.6,2.67978677]
[1753056898802,0.5,3731.8,3731.4,2.67992233]
[1753056899105,0.5,3731.8,3731.4,2.94791456]
[1753056899262,0.443,3732.1,3731.4,2.94791456]
[1753056899464,0.5,3731.8,3730.9,0.70750621]
[1753056899684,0.5,3731.6,3731.4,2.67993186]
[1753056900003,0.5,3731.6,3730.9,0.70750621]
[1753056900297,0.5,3731.9,3730.9,0.70750621]
[1753056900498,0.5,3731.9,3731.8,2.679672]
[1753056900702,0.5,3732.6,3731.8,0.1346]
[1753056900908,0.5,3732.6,3732.2,2.6793443]
[1753056901110,0.5,3732.6,3731.8,0.1346]
[1753056901311,0.5,3732.6,3731.9,0.58143715]
[1753056901471,0.5,3732.6,3730.4,13.40783438]
[1753056901472,0.5,3732.1,3731.0,0.1346]
[1753056901675,0.5,3732.1,3730.7,0.1346]
[1753056901907,0.5,3731.8,3730.7,4.3876]
[1753056902111,0.5,3731.8,3731.5,2.67987067]
[1753056902314,0.5,3732.5,3732.4,2.67924123]
[1753056902502,0.52,3732.9,3732.7,2.67898026]
[1753056902816,0.02,3732.9,3732.8,2.67895413]
[1753056903017,0.02,3732.9,3732.8,2.69235304]
[1753056903332,0.02,3732.9,3732.8,2.81255413]
[1753056905532,0.02,3732.9,3732.8,2.82595232]
[1753056906122,0.02,3732.9,3732.8,2.81255413]
[1753056906318,0.02,3732.9,3732.8,3.41543438]
[1753056906518,0.02,3732.9,3732.8,0.1336]
[1753056906720,0.463,3732.9,3732.8,0.1336]
[1753056907055,0.02,3732.9,3732.8,0.1336]
[1753056907418,0.5,3732.0,3730.8,0.1346]
[1753056907620,0.943,3732.0,3731.8,0.1336]
[1753056907827,0.443,3731.9,3731.8,0.1336]
[1753056908459,0.5,3732.0,3731.8,0.1336]
[1753056908861,0.5,3731.9,3731.8,0.1336]
[1753056909923,1.257,3732.1,3731.8,2.81321521]
[1753056910147,0.5,3732.1,3731.9,2.67953144]
[1753056910349,0.5,3732.1,3732.0,0.1336]
[1753056910550,0.5,3732.2,3732.0,0.14701255]
[1753056910739,0.5,3732.2,3732.0,2.81312776]
[1753056910946,0.5,3732.2,3732.1,2.6794566]
[1753056911348,0.5,3732.5,3732.1,2.67943312]
[1753056911549,0.5,3732.5,3732.3,2.6792598]
[1753056911752,0.5,3732.5,3732.4,0.1336]
[1753056912241,0.5,3732.8,3732.4,0.1336]
[1753056912441,0.5,3732.5,3732.4,0.1336]
[1753056912643,0.5,3732.5,3732.0,2.67945989]
[1753056912644,0.5,3732.5,3732.1,2.6794566]
[1753056912837,0.5,3732.5,3731.5,2.67987588]
[1753056912838,1.2626,3732.5,3732.4,0.1336]
[1753056913153,0.5,3732.0,3731.5,2.67987713]
[1753056913348,0.5,3732.2,3732.0,0.1336]
[1753056913536,0.5,3731.8,3731.1,2.68115155]
[1753056913741,0.8128,3731.7,3731.6,0.1336]
[1753056914037,0.5,3731.4,3731.3,0.1336]
[1753056914541,0.943,3731.4,3731.3,0.1336]
[1753056914746,0.943,3731.4,3731.1,0.1346]
[1753056914973,0.443,3731.3,3731.1,0.1346]
[1753056916354,0.943,3731.2,3731.1,0.1346]
[1753056916550,4.39390291,3731.2,3731.1,0.001]
[1753056916793,5.10128984,3731.2,3731.1,0.001]
[1753056917351,2.42118693,3731.2,3731.1,0.001]
[1753056917552,4.39390291,3731.2,3731.1,0.001]
[1753056917755,1.7138,3731.2,3731.1,0.001]
[1753056918163,4.39390291,3731.2,3731.1,0.001]
[1753056918764,1.2708,3731.2,3731.1,0.001]
[1753056918970,0.5,3731.5,3731.1,2.81476149]
[1753056919194,0.5,3731.2,3731.1,0.1346]
[1753056919562,0.943,3731.2,3731.1,0.1346]
[1753056919763,0.943,3731.2,3731.1,0.001]
[1753056919964,2.4104107,3731.2,3731.1,0.001]
[1753056920189,1.76340128,3731.2,3731.1,0.001]
[1753056920495,1.2869,3731.2,3731.1,0.1346]
[1753056921486,0.5,3731.2,3731.1,0.1346]
[1753056922081,0.5,3731.4,3731.1,0.1346]
[1753056922402,0.5,3731.5,3731.2,2.68003259]
[1753056922705,0.5,3731.5,3731.3,0.1336]
[1753056922863,0.5,3731.7,3731.4,2.67995926]
[1753056923207,0.5,3732.2,3731.5,0.14802152]
[1753056923374,0.465,3732.9,3732.3,2.67930507]
[1753056923700,0.465,3732.9,3732.1,0.1336]
[1753056923864,0.5,3732.8,3732.7,0.1336]
[1753056924065,2.67908241,3732.7,3731.1,0.001]
[1753056924408,0.5,3732.2,3732.1,0.1336]
[1753056925301,1.7273,3732.2,3731.2,2.68008498]
[1753056925513,0.5,3731.6,3731.3,2.67997017]
[1753056925666,0.5,3732.0,3731.8,0.1336]
[1753056925868,0.5,3732.0,3731.6,2.67977832]
[1753056926103,0.002,3732.2,3731.9,0.1336]
[1753056926299,0.502,3732.2,3732.1,0.1336]
[1753056926524,0.002,3732.2,3732.1,0.1336]
[1753056926911,0.502,3732.2,3732.1,0.1336]
[1753056928135,0.002,3732.2,3732.1,2.8130566]
[1753056928835,0.502,3732.2,3732.1,0.1336]
[1753056929199,0.936,3732.2,3732.1,0.1336]
[1753056929403,1.29752616,3732.2,3732.1,0.1336]
[1753056930025,0.7635,3732.1,3731.7,0.1336]
[1753056930234,0.5,3731.8,3731.7,0.1336]
[1753056931231,0.934,3731.8,3731.7,0.1336]
[1753056931471,0.934,3731.8,3731.5,0.1336]
[1753056931747,0.934,3731.8,3731.1,0.001]
[1753056931748,0.5,3731.3,3731.1,0.001]
[1753056932153,0.5,3731.3,3731.2,0.1336]
[1753056932339,1.2528,3731.3,3731.2,0.1336]
[1753056932947,1.6868,3731.3,3731.1,0.001]
[1753056933243,0.434,3731.2,3731.1,0.001]
[1753056933747,0.5,3731.3,3731.1,0.001]
[1753056934111,0.5,3731.3,3731.1,2.68116922]
[1753056934441,0.5,3731.3,3731.2,0.1336]
[1753056935047,0.934,3731.3,3731.2,0.1336]
[1753056935352,0.934,3731.3,3731.1,0.001]
[1753056935536,0.5,3731.3,3731.1,0.001]
[1753056935714,0.434,3731.2,3731.1,0.001]
[1753056937225,0.5,3731.3,3731.1,0.001]
[1753056937638,0.434,3731.2,3731.1,0.001]
[1753056939261,0.5,3731.3,3731.1,0.001]
[1753056939561,0.5,3731.6,3731.2,0.1336]
[1753056939763,0.7938,3732.1,3731.4,2.67991602]
[1753056940072,0.002,3732.2,3731.9,2.6796002]
[1753056940360,0.002,3732.2,3732.1,2.6794566]
[1753056941169,0.002,3732.2,3732.1,7.45286735]
[1753056941381,0.002,3732.2,3732.1,7.5740566]
[1753056941680,0.002,3732.2,3732.1,7.4394566]
[1753056941866,0.002,3732.2,3732.1,12.70572228]
[1753056942185,0.002,3732.2,3732.1,8.46472228]
[1753056942384,0.002,3732.2,3732.1,12.70372228]
[1753056942680,0.002,3732.2,3732.1,8.46472228]
[1753056942877,0.002,3732.2,3732.1,12.70272228]
[1753056944486,0.002,3732.2,3732.1,12.83732228]
[1753056944653,0.002,3732.2,3732.1,12.70272228]
[1753056945182,0.002,3732.2,3732.1,5.78526568]
[1753056945369,0.002,3732.2,3732.1,11.68786735]
[1753056945574,0.002,3732.2,3732.1,11.6744566]
[1753056945961,0.002,3732.2,3732.1,6.9134566]
[1753056946381,0.002,3732.2,3732.1,2.6794566]
[1753056946689,0.002,3732.2,3732.1,6.92386735]
[1753056946888,0.002,3732.2,3732.1,7.88416111]
[1753056947066,0.002,3732.2,3732.1,8.01876111]
[1753056947250,0.002,3732.2,3732.1,3.65316111]
[1753056947589,0.5,3732.1,3732.0,0.1336]
[1753056947961,0.934,3732.1,3732.0,0.1336]
[1753056948284,0.5,3732.1,3732.0,0.1336]
[1753056948485,0.934,3732.1,3731.6,4.233]
[1753056948688,0.934,3732.1,3731.8,0.1336]
[1753056948689,0.5,3731.9,3731.8,0.1336]
[1753056949191,0.934,3731.9,3731.8,0.1336]
[1753056949750,0.934,3731.9,3731.1,0.001]
[1753056949751,0.5,3731.6,3731.1,0.001]
[1753056949955,1.2999,3731.6,3731.4,0.1336]
[1753056950288,0.434,3731.5,3731.4,0.1336]
[1753056950787,0.434,3731.5,3731.2,0.1336]
[1753056950986,0.5,3731.3,3731.2,0.1336]
[1753056951204,0.934,3731.3,3731.2,0.1336]
[1753056958695,0.934,3731.3,3731.1,0.001]
[1753056958696,1.10739,3731.3,3731.1,0.001]
[1753056958901,0.4525,3731.2,3731.1,0.001]
[1753056959797,0.48600128,3731.2,3731.1,0.001]
[1753056960387,0.4525,3731.2,3731.1,0.001]
[1753056960727,0.48600128,3731.2,3731.1,0.001]
[1753056961020,1.26360128,3731.2,3731.1,0.001]
[1753056961185,4.15076332,3731.2,3731.1,0.001]
[1753056961585,0.5,3731.3,3731.1,0.001]
[1753056962204,0.5,3731.2,3731.1,0.001]
[1753056962405,1.2456,3731.5,3731.1,0.001]
[1753056962606,1.2456,3731.5,3731.1,2.68112068]
[1753056962830,4.22,3731.9,3731.1,2.69455654]
[1753056962831,0.5,3731.3,3731.1,2.69455654]
[1753056962986,0.5,3731.5,3731.4,2.81355926]
[1753056963306,0.5,3731.8,3731.7,2.67974381]
[1753056963509,0.5,3731.8,3731.2,2.68010291]
[1753056963728,0.5,3731.2,3731.1,0.27045565]
[1753056964132,0.9525,3731.2,3731.1,0.1346]
[1753056964503,3.63260291,3731.2,3731.1,0.1346]
[1753056964704,4.44940419,3731.2,3731.1,0.001]
[1753056964955,4.58300419,3731.2,3731.1,0.001]
[1753056965443,0.5,3730.2,3729.3,2.68146452]
[1753056965653,0.5,3730.2,3730.1,0.1536]
[1753056965944,0.9525,3730.2,3730.1,0.1536]
[1753056966301,3.6333214,3730.2,3730.1,0.02]
[1753056966506,5.05807369,3730.2,3730.1,0.02]
[1753056966808,5.09158395,3730.2,3730.1,0.02]
[1753056967031,5.05807369,3730.2,3730.1,0.02]
[1753056967207,5.09158395,3730.2,3730.1,0.02]
[1753056967402,5.05807369,3730.2,3730.1,0.02]
[1753056967607,5.60807369,3730.2,3730.1,0.02]
[1753056968311,0.5,3729.2,3729.1,0.02]
[1753056968937,0.9525,3729.2,3729.1,0.02]
[1753056969134,1.7599,3729.2,3729.1,0.02]
[1753056970250,0.5,3729.2,3729.1,0.02]
[1753056971158,0.9525,3729.2,3729.1,0.02]
[1753056971364,0.9525,3729.2,3728.4,0.02]
[1753056971365,0.5,3728.5,3728.1,0.02]
[1753056971671,0.5,3728.2,3728.1,0.02]
[1753056972169,0.5,3728.4,3728.3,2.68218759]
[1753056972342,0.5,3728.6,3728.5,2.68204371]
[1753056973133,0.5,3728.8,3728.7,2.68189985]
[1753056973866,5.0518,3729.6,3728.9,2.68171298]
[1753056974030,0.5,3728.9,3728.4,0.02]
[1753056974231,0.5,3728.9,3728.8,2.68182793]
[1753056974653,0.5,3729.1,3728.7,2.68189822]
[1753056974836,0.5,3728.9,3728.8,2.68178016]
[1753056975257,0.5,3728.9,3728.5,0.57032176]
[1753056975535,0.5,3728.7,3728.6,2.68197178]
[1753056975752,0.5,3728.7,3728.4,0.02]
[1753056976079,0.5,3728.7,3728.5,2.68203767]
[1753056976372,0.5,3728.7,3728.4,0.02]
[1753056976532,0.5,3728.7,3728.6,2.68197178]
[1753056977134,0.5,3728.7,3728.4,0.02]
[1753056977371,0.5,3728.7,3728.5,2.68199042]
[1753056977573,0.5,3728.7,3728.4,0.02]
[1753056977864,0.5,3728.7,3728.4,2.68205608]
[1753056978102,0.5,3728.7,3728.6,2.68197178]
[1753056978443,0.03351655,3729.5,3728.3,0.001]
[1753056978444,0.5,3728.5,3728.3,0.001]
[1753056979059,0.5,3728.5,3728.4,2.68211565]
[1753056979655,0.5,3728.5,3728.4,2.69559288]
[1753056979867,0.5,3728.8,3728.7,2.68189985]
[1753056980069,0.5,3729.0,3728.7,2.68189985]
[1753056980385,0.5,3729.5,3729.4,2.68139647]
[1753056980588,0.5,3729.7,3729.6,2.68125268]
[1753056980802,0.5,3730.3,3730.2,2.6808214]
[1753056981027,0.5,3730.3,3730.2,2.8144214]
[1753056981219,0.02,3730.9,3730.4,2.68067767]
[1753056981421,0.02,3730.9,3730.5,2.69401977]
[1753056981567,0.52,3730.9,3730.8,0.1336]
[1753056982369,0.52,3730.9,3730.2,2.68082133]
[1753056982370,0.5,3730.3,3730.2,2.68082133]
[1753056982716,0.5,3730.3,3730.1,2.68087007]
[1753056983000,0.5,3730.3,3730.2,0.1336]
[1753056983211,0.5,3730.3,3730.2,2.8144214]
[1753056983568,0.5,3730.6,3730.5,2.68060581]
[1753056984117,0.5,3730.6,3730.5,2.81420581]
[1753056984318,0.5,3730.8,3730.7,2.68046211]
[1753056984802,0.5,3730.8,3730.7,0.1336]
[1753056985381,0.9525,3730.8,3730.7,0.1336]
[1753056985777,0.5,3730.2,3730.0,2.68095727]
[1753056986009,0.5,3730.2,3730.1,0.1336]
[1753056986572,0.5,3730.2,3730.1,2.81449327]
[1753056986809,0.5,3730.4,3730.3,2.68074953]
[1753056987007,0.5,3730.6,3730.5,2.68060581]
[1753056987313,0.02,3730.9,3730.8,2.70039026]
[1753056987479,0.02,3730.9,3730.8,2.71382435]
[1753056987685,0.02,3730.9,3730.8,3.00302435]
[1753056987983,0.02,3730.9,3730.8,8.31859949]
[1753056988513,0.02,3730.9,3730.8,11.47419949]
[1753056989120,0.02,3730.9,3730.8,14.30586649]
[1753056989297,1e-08,3730.9,3730.8,14.30586649]
[1753056990699,1e-08,3730.9,3730.8,10.27935519]
[1753056990910,1e-08,3730.9,3730.8,14.30286649]
[1753056991275,1e-08,3730.9,3730.8,10.07986649]
[1753056991479,1e-08,3730.9,3730.8,14.30486649]
[1753056993116,1e-08,3730.9,3730.8,11.31659949]
[1753056993318,1e-08,3730.9,3730.8,11.31359949]
[1753056993614,1e-08,3730.9,3730.8,11.46919949]
[1753056993820,1e-08,3730.9,3730.8,11.31359949]
[1753056994323,1e-08,3730.9,3730.8,7.09259949]
[1753056994489,1e-08,3730.9,3730.8,10.21059026]
[1753056994826,0.02,3731.9,3731.8,5.679672]
[1753056995127,0.02,3731.9,3731.8,17.17146614]
[1753056995316,1e-08,3731.9,3731.8,10.188872]
[1753056995489,1e-08,3732.0,3731.9,5.6796002]
[1753056995684,1e-08,3732.0,3731.9,13.24273413]
[1753056995885,1e-08,3732.4,3732.1,5.6794566]
[1753056996117,1e-08,3732.4,3732.3,5.67931302]
[1753056996323,1e-08,3732.4,3732.3,33.1336]
[1753056996527,1e-08,3732.4,3732.3,35.96851302]
[1753056996701,1e-08,3732.4,3732.3,33.88138095]
[1753056996905,1e-08,3732.4,3732.3,24.06651995]
[1753056997534,1e-08,3733.0,3732.9,2.69888237]
[1753056997740,1e-08,3733.0,3732.9,23.19215537]
[1753056998029,1e-08,3733.0,3732.9,10.99160237]
[1753056998205,2.67881061,3733.0,3732.9,2.716982]
[1753056998409,0.5,3731.7,3731.1,0.02]
[1753056998728,0.5,3731.7,3731.6,2.67981562]
[1753056998948,0.5,3731.9,3731.8,2.679672]
[1753056999253,0.5,3731.7,3731.6,6.93681562]
[1753056999452,0.4388,3732.3,3731.6,5.21867767]
[1753056999453,0.5,3731.9,3731.6,5.21867767]
[1753056999614,0.5,3731.7,3731.6,4.255]
[1753056999818,0.4388,3731.7,3731.2,2.6800474]
[1753057000015,0.5,3731.3,3731.2,2.6800474]
[1753057000207,1.2,3732.4,3731.2,0.1556]
[1753057000536,0.4388,3732.6,3731.4,3.0]
[1753057000745,0.7628,3732.8,3731.9,2.67958072]
[1753057000746,0.4388,3732.5,3731.9,2.67958072]
[1753057000893,0.4388,3732.5,3731.6,3.0]
[1753057001097,0.03349051,3732.4,3731.2,2.68010291]
[1753057001326,0.4388,3732.3,3731.8,2.67961064]
[1753057001529,0.4388,3732.2,3731.9,2.67955737]
[1753057001757,0.4388,3732.2,3731.3,0.01341506]
[1753057001957,0.4388,3732.6,3732.0,2.67946555]
[1753057002160,0.4388,3732.6,3732.1,2.67945601]
[1753057002363,0.7628,3732.8,3731.1,0.04]
[1753057002563,0.4388,3732.5,3732.0,2.67946889]
[1753057002763,0.4388,3732.4,3731.8,2.67960628]
[1753057002964,0.8325,3732.3,3731.3,2.68003108]
[1753057003171,0.4388,3732.2,3731.5,2.67987806]
[1753057003467,0.47229231,3732.2,3731.1,0.02]
[1753057003670,0.47229231,3732.2,3731.3,2.67996921]
[1753057003966,0.47229231,3732.2,3731.2,2.98209817]